[Event "Germany Countries-chT Youth 2022"]
[Site "Wiesbaden"]
[Date "2022.10.02"]
[Round "4"]
[White "Popist, Florian"]
[Black "Tovmasyan, Minas"]
[Result "1-0"]
[ECO "B23"]
[WhiteElo "2187"]
[BlackElo "1838"]
[Annotator "TA"]
[PlyCount "63"]
[EventDate "2022.09.28"]
[EventType "team-tourn"]
[EventRounds "7"]
[EventCountry "GER"]
[SourceTitle "playchess.com"]
[Source "ChessBase"]
[SourceQuality "1"]
[TimeControl "40/5400+30:1800+30"]

{[%evp 12,62,1,6,8,5,27,6,41,27,46,48,51,27,50,46,57,57,52,-20,68,0,149,5,162,17,97,18,55,21,116,129,132,121,310,322,640,659,545,226,395,383,29970,29971,2019,1987,29994,29995,29995,29996,29996,29997,29999]} 1. e4 {[%emt 0:00:02] Meier,Georg} c5 {[%emt 0:00:17]} 2. Nc3 {[%emt 0:00:10]} e6 {[%emt 0:00:53]} 3. f4 {[%emt 0:00:08]} d5 {[%emt 0:00:56]} 4. Nf3 {[%emt 0:00:22]} Nf6 {[%emt 0:03:08]} 5. e5 {[%emt 0:04:36]} Nfd7 {[%emt 0:00:10]} 6. d4 {[%emt 0:00:30]} Nc6 {[%emt 0:00:55]} 7. Ne2 {[%emt 0:04:41]} Be7 {[%emt 0:03:06] is now debated instead of 7...Qb6. C05: French Tarrasch: 3...Nf6 4 e5 Nfd7, 5 f4 and 5 Bd3 sidelines.} 8. g3 {[%emt 0:00:21] [#]} h5 $146 {[%emt 0:06:06]} ({Predecessor:} 8... O-O 9. Bg2 b5 10. Be3 Qa5+ 11. Kf2 f6 12. c3 b4 13. Re1 bxc3 14. bxc3 Ba6 15. Bh3 {0-1 (52) Movsesian,S (2710)-Meier,G (2659) Porto Carras 2011 CBM 146 [Meier,Georg]}) 9. Bh3 {[%emt 0:01:49]} a6 {[%emt 0:05:17] The position is equal.} 10. O-O {[%emt 0:01:05]} b5 {[%emt 0:01:15]} 11. c3 {[%emt 0:08:54]} Nb6 {[%emt 0:02:12]} 12. Kg2 {[%emt 0:03:03]} Bd7 {[%emt 0:05:26]} 13. Qd3 {[%emt 0:03:15]} g6 {[%emt 0:02:49] Prevents f5.} 14. dxc5 {[%emt 0:02:14]} Bxc5 {[%emt 0:01:00]} 15. Be3 {[%emt 0:00:44]} (15. Rd1 $14) 15... Be7 {[%emt 0:09:33]} (15... Bxe3 $11 16. Qxe3 Nc4) 16. Ned4 {[%emt 0:04:25] White is much more active. The black rooks are badly placed.} (16. b3 $14) 16... Na4 {[%emt 0:05:52] [#]} (16... Nc4 $11) 17. Rf2 {[%emt 0:27:03]} (17. Bxe6 $1 $16 {[%mdl 512]} Bxe6 18. Nxc6) 17... Qc7 $2 {[%emt 0:06:53] [#]} (17... Nc5 $11 {and Black has nothing to worry.} 18. Qe2 Nxd4 19. Nxd4 Qc7) 18. Nxc6 {[%emt 0:05:04]} ({Don't play} 18. Bxe6 Bxe6 19. Nxe6 fxe6 $16) ({White should play} 18. Nxe6 $1 $18 {[%mdl 512]} Bxe6 19. Bxe6 fxe6 20. Qxg6+ Kd8 21. Qxe6) 18... Bxc6 {[%emt 0:02:40] [#]} (18... Qxc6 $11 19. Nd4 Nc5) 19. Bd4 {[%emt 0:02:52]} (19. Bxe6 $1 $16 fxe6 20. Qxg6+ Kd7 21. f5) 19... Bd7 {[%emt 0:05:41]} 20. Kg1 {[%emt 0:02:16]} O-O {[%emt 0:01:36]} (20... Nc5 $11 {keeps the balance.} 21. Qe3 Rc8) 21. Qe3 $1 $16 {[%emt 0:05:46][%cal Of4f5] Black must now prevent f5!} Nc5 {[%emt 0:12:00]} 22. Nd2 $1 {[%emt 0:04:20] Prevents Ne4.} Rfc8 $2 {[%emt 0:02:20]} (22... Rad8 $16 {was necessary.}) 23. b4 $1 $18 {[%emt 0:03:55]} Na4 $2 {[%emt 0:01:12] [#]} (23... a5 24. bxc5 (24. Bxc5 Bxc5 25. bxc5 Qxc5 $18) 24... Bxc5) 24. f5 $1 {[%emt 0:00:47] And now fxg6 would win.} gxf5 {[%emt 0:16:54] [#]} 25. Raf1 {[%emt 0:05:37]} (25. Bxf5 $142 $1 {[%cal Oe3h6][%mdl 512] White wants to mate with Qh6!} exf5 26. e6) 25... Nxc3 $2 {[%emt 0:03:38]} (25... Qd8 {might work better.}) 26. Qh6 {[%emt 0:04:44][%cal Rh3f5] Threatening mate with Bxf5!} Qd8 $2 {[%emt 0:01:02] [#]} (26... Bf8 $18 27. Qxh5 Be8) 27. Bxf5 $1 {[%emt 0:00:58][%mdl 576] Promotion} exf5 {[%emt 0:00:13]} 28. e6 $1 {[%emt 0:00:11][%csl Gd4][%cal Rh6h8]} f6 {[%emt 0:00:24]} 29. Qg6+ {[%emt 0:00:23] White mates.} Kh8 {[%emt 0:00:27]} 30. Rxf5 {[%emt 0:00:09][%cal Rf5h5]} Ne2+ {[%emt 0:00:44]} 31. Kh1 {[%emt 0:00:19][%cal Rf5h5]} Nxd4 {[%emt 0:00:15]} 32. Rxh5# {Weighted Error Value: White=0.33/Black=1.09} 1-0

[Event "Germany Countries-chT Youth 2022"]
[Site "Wiesbaden"]
[Date "2022.10.02"]
[Round "4"]
[White "Sidletskyi, Ivan"]
[Black "Laux, Dominik"]
[Result "1/2-1/2"]
[ECO "B56"]
[WhiteElo "2184"]
[BlackElo "2248"]
[Annotator "TA"]
[PlyCount "93"]
[EventDate "2022.09.28"]
[EventType "team-tourn"]
[EventRounds "7"]
[EventCountry "GER"]
[SourceTitle "playchess.com"]
[Source "ChessBase"]
[SourceQuality "1"]
[TimeControl "40/5400+30:1800+30"]

{[%evp 13,93,25,26,20,28,16,2,2,13,16,15,6,7,0,0,0,0,-46,-42,-35,45,39,54,33,69,72,102,88,88,89,110,109,306,297,283,141,160,107,179,189,217,211,217,193,208,198,241,237,234,227,287,209,204,202,219,130,130,130,131,131,132,126,137,125,155,84,112,91,160,143,147,151,183,183,168,122,152,0,113,0,133,0]} 1. e4 {[%emt 0:01:01]} c5 {[%emt 0:00:25]} 2. Nf3 {[%emt 0:00:40]} Nc6 {[%emt 0:00:19]} 3. Nc3 {[%emt 0:01:22]} d6 {[%emt 0:01:02]} 4. d4 {[%emt 0:00:49]} cxd4 {[%emt 0:00:33]} 5. Nxd4 {[%emt 0:00:07]} Nf6 {[%emt 0:00:17]} 6. g3 {[%emt 0:00:46]} e5 {[%emt 0:02:49]} 7. Nde2 {[%emt 0:00:50]} Be7 {[%emt 0:01:20]} 8. Bg2 {[%emt 0:00:17] B56: Classical Sicilian: Unusual Lines.} a6 {[%emt 0:06:02][%cal Ba7a6,Ba6a5][%mdl 32]} 9. a4 {[%emt 0:03:10]} Nb4 {[%emt 0:04:38]} 10. O-O {[%emt 0:08:42] The position is equal.} O-O {[%emt 0:05:09]} 11. b3 {[%emt 0:10:41]} Be6 {[%emt 0:16:53]} 12. Ba3 {[%emt 0:04:16]} a5 {[%emt 0:01:50] [#]} 13. Bb2 $146 {[%emt 0:02:43]} ({Predecessor:} 13. Qd2 Rc8 14. Rac1 h6 15. h3 Qb6 16. Nb5 d5 17. Bxb4 Bxb4 18. c3 Bc5 19. exd5 {½-½ (44) Bacrot,E (2669)-Spoelman,W (2588) Germany 2020}) 13... Rc8 {[%emt 0:03:30]} 14. Rc1 $1 {[%emt 0:03:46]} Qb6 {[%emt 0:04:22]} 15. Qd2 {[%emt 0:13:56]} (15. Nb5 $11 {feels stronger.}) 15... Rfd8 $1 $15 {[%emt 0:02:13]} 16. Nb5 {[%emt 0:05:37]} h6 {[%emt 0:13:46]} (16... d5 $15 17. Bxe5 dxe4) 17. c4 $14 {[%emt 0:03:17]} Ng4 {[%emt 0:02:21]} 18. Rc3 {[%emt 0:03:54]} Bg5 {[%emt 0:03:46]} 19. Qe1 {[%emt 0:00:57] aiming for h3.} h5 {[%emt 0:02:19]} 20. h3 {[%emt 0:01:59]} Nf6 {[%emt 0:00:34]} 21. Kh2 {[%emt 0:03:56]} Ne8 {[%emt 0:04:01]} 22. f4 $1 {[%emt 0:04:37]} exf4 {[%emt 0:01:28]} (22... Bf6 $16 {is a better defense.}) 23. Nxf4 $18 {[%emt 0:10:21]} Bf6 {[%emt 0:03:16]} 24. Nxh5 {[%emt 0:02:46]} (24. Qe2 $18 {has better winning chances.}) 24... Be5 $16 {[%emt 0:00:08]} 25. Nf4 {[%emt 0:04:18]} ({Better is} 25. Qd2) 25... Nc7 {[%emt 0:01:06]} (25... Bd7 $16 {was worth a try.}) 26. Qd2 {[%emt 0:01:51]} Nxb5 {[%emt 0:02:23]} 27. axb5 {[%emt 0:00:09]} Qd4 {[%emt 0:04:34] [#]} 28. Rc2 {[%emt 0:02:37][%mdl 512]} Qb6 {[%emt 0:00:58]} (28... Nxc2 29. Bxd4) 29. Rcc1 {[%emt 0:00:43]} Bxb2 {[%emt 0:00:55]} 30. Qxb2 {[%emt 0:00:05] And now Nh5 would win.} Qc5 {[%emt 0:00:43] Against Nh5} 31. Rfd1 {[%emt 0:01:15]} Rc7 {[%emt 0:05:55]} 32. Bf1 {[%emt 0:00:54]} Rcd7 {[%emt 0:00:43]} 33. Qd4 {[%emt 0:00:53]} b6 {[%emt 0:01:52]} 34. Nd5 {[%emt 0:01:15]} (34. h4 $18) 34... Qxd4 {[%emt 0:01:03]} 35. Rxd4 {[%emt 0:00:06]} Bxd5 {[%emt 0:00:14]} 36. cxd5 {[%emt 0:00:15]} ({Don't do} 36. exd5 Re8 $14) 36... Re7 {[%emt 0:01:38]} 37. h4 {[%emt 0:01:48]} g6 {[%emt 0:00:52]} 38. g4 {[%emt 0:00:56]} Kg7 {[%emt 0:00:20]} 39. g5 {[%emt 0:01:21]} ({White should try} 39. Rc3) 39... Rde8 {[%emt 0:01:43]} 40. Rcc4 {[%emt 0:00:38]} Kf8 {[%emt 0:00:55]} (40... f6 $142) 41. Kg3 {[%emt 0:03:24]} Kg7 {[%emt 0:00:59]} 42. Bh3 {[%emt 0:02:00]} Kh7 {[%emt 0:00:55]} 43. Bg4 {[%emt 0:03:22]} Kg7 {[%emt 0:00:11]} 44. Kf3 {[%emt 0:02:22]} (44. h5 $18) 44... Rh8 {[%emt 0:01:09]} 45. Kg3 {[%emt 0:00:14]} Rhe8 {[%emt 0:00:52]} 46. Kf3 {[%emt 0:01:02]} Rh8 {[%emt 0:00:43] [#]} 47. Kg3 {[%emt 0:00:17] Weighted Error Value: White=0.26 (precise) /Black=0.22 (precise)} ({Only move:} 47. Rc6 $1 $16 {[%cal Rc6d6][%mdl 512]}) 1/2-1/2

[Event "Germany Countries-chT Youth 2022"]
[Site "Wiesbaden"]
[Date "2022.10.02"]
[Round "4"]
[White "Heinrich, John"]
[Black "Bosselmann, Tom Linus"]
[Result "1-0"]
[ECO "B55"]
[WhiteElo "2139"]
[BlackElo "2061"]
[Annotator "TA"]
[PlyCount "69"]
[EventDate "2022.09.28"]
[EventType "team-tourn"]
[EventRounds "7"]
[EventCountry "GER"]
[SourceTitle "playchess.com"]
[Source "ChessBase"]
[SourceQuality "1"]
[TimeControl "40/5400+30:1800+30"]

{[%evp 22,69,66,79,111,95,119,133,167,157,170,164,164,164,159,164,185,188,187,172,187,177,166,173,193,81,150,124,185,185,500,500,1113,1110,842,944,2281,2154,2653,3193,2177,2222,29969,29940,29978,29979,29980,29981,29955,6187]} 1. e4 {[%emt 0:00:03]} c5 {[%emt 0:00:03]} 2. Nf3 {[%emt 0:00:08][%cal Bg1f3,Bf3d4,Bd4f5][%mdl 32]} d6 {[%emt 0:00:05]} 3. d4 {[%emt 0:00:13]} cxd4 {[%emt 0:00:06]} 4. Nxd4 {[%emt 0:00:04]} Nf6 {[%emt 0:00:07]} 5. f3 {[%emt 0:00:03]} e5 {[%emt 0:07:56]} 6. Bb5+ {[%emt 0:00:21]} Bd7 {[%emt 0:01:25]} 7. Bxd7+ {[%emt 0:00:08]} Qxd7 {[%emt 0:00:21]} 8. Nf5 {[%emt 0:00:15]} d5 {[%emt 0:02:00]} 9. Bg5 {[%emt 0:01:11]} dxe4 {[%emt 0:07:37]} 10. Bxf6 {[%emt 0:00:32]} Qxd1+ {[%emt 0:02:21]} 11. Kxd1 {[%emt 0:00:06]} gxf6 {[%emt 0:00:10]} 12. fxe4 {[%emt 0:00:06]} Na6 {[%emt 0:08:23] B55: Sicilian: 2...d6 3 d4 cxd4 4 Nxd4 Nf6 5 f3.} 13. Nc3 {[%emt 0:03:17] White is more active. Pair of Knights!} O-O-O+ {[%emt 0:00:19]} 14. Ke2 {[%emt 0:00:47]} Nb4 {[%emt 0:23:15] Inhibits Nd5. White is clearly better.} 15. Rac1 {[%emt 0:03:55]} Rg8 {[%emt 0:00:11]} 16. g3 {[%emt 0:00:42]} Rg5 {[%emt 0:01:40] [#]} 17. Rhd1 $146 {[%emt 0:11:28]} ({Predecessor:} 17. h4 Rg4 18. Kf3 h5 19. Rhd1 Rxd1 20. Nxd1 Nxa2 21. Ra1 Nb4 22. Nde3 Rg8 23. Rxa7 {1-0 (58) Vas,P (2138)-Dragun,K (2030) Barlinek 2007}) 17... Rxd1 {[%emt 0:02:45]} 18. Kxd1 {[%emt 0:04:26]} Kd7 {[%emt 0:03:16]} 19. Ke2 $1 {[%emt 0:02:00]} Nc6 {[%emt 0:10:10]} 20. Rd1+ {[%emt 0:01:06]} Nd4+ {[%emt 0:01:57]} 21. Nxd4 {[%emt 0:00:20]} exd4 {[%emt 0:00:06]} 22. Rxd4+ $18 {[%emt 0:00:31][%mdl 4096] Endgame KRB-KRN} Ke6 23. Rd5 {[%emt 0:14:46]} (23. Rd8 $18 {has better winning chances.} Bc5 24. Nd5) 23... Bb4 {[%emt 0:02:44]} (23... Rxd5 $142 24. exd5+ (24. Nxd5 Ke5 $14) 24... Ke5) 24. Kd3 {[%emt 0:02:11]} Re5 {[%emt 0:01:33]} (24... Bc5 $16 25. Kc4 Bg1) 25. Kd4 {[%emt 0:15:11]} Bxc3+ $2 {[%emt 0:02:46]} (25... b6 {is more resistant.} 26. Rxe5+ fxe5+ 27. Kd3 Bc5) 26. bxc3 {[%emt 0:01:12][%cal Bb2c3,Bc3c4,Bc4c5][%mdl 32]} ({Less strong is} 26. Kxc3 Rxd5 27. exd5+ Kxd5 $14) 26... Rg5 {[%emt 0:02:44]} (26... a6 $142 27. c4 Rg5) 27. Rxg5 {[%emt 0:01:15]} fxg5 {[%emt 0:00:01] KP-KP} 28. g4 {[%emt 0:09:48]} f6 {[%emt 0:04:15] [#]} 29. c4 $1 {[%emt 0:00:18]} Kd6 {[%emt 0:01:22] [#]} 30. c5+ $1 {[%emt 0:01:36]} Ke6 {[%emt 0:00:02]} 31. a4 {[%emt 0:01:09][%cal Ba2a4,Ba4a5][%mdl 32]} a6 {[%emt 0:05:25]} 32. a5 {[%emt 0:01:12] White mates.} h6 {[%emt 0:00:55]} 33. h3 {[%emt 0:00:07]} Ke7 {[%emt 0:01:19]} 34. Kd5 {[%emt 0:00:13]} Kd7 {[%emt 0:00:02]} 35. c3 {[%emt 0:00:43] Weighted Error Value: White=0.09 (flawless) /Black=0.71} (35. c4 $142 Kc7 36. Ke6 Kc6 37. Kxf6 Kxc5 38. e5 Kc6 39. e6 Kc5 40. e7) 1-0

[Event "Germany Countries-chT Youth 2022"]
[Site "Wiesbaden"]
[Date "2022.10.02"]
[Round "4"]
[White "Sommer, Justus"]
[Black "Hassemeier, Mika"]
[Result "1-0"]
[ECO "C41"]
[WhiteElo "2122"]
[BlackElo "2095"]
[Annotator "TA"]
[PlyCount "43"]
[EventDate "2022.09.28"]
[EventType "team-tourn"]
[EventRounds "7"]
[EventCountry "GER"]
[SourceTitle "playchess.com"]
[Source "ChessBase"]
[SourceQuality "1"]
[TimeControl "40/5400+30:1800+30"]

{[%evp 20,43,0,-19,-27,-142,-140,-113,-54,-73,-82,-85,-59,-52,-58,-73,96,94,138,147,734,726,29992,29993,29993,29994]} 1. e4 {[%emt 0:00:11]} d6 {[%emt 0:00:06]} 2. d4 {[%emt 0:00:16]} Nf6 {[%emt 0:00:07]} 3. Nc3 {[%emt 0:00:46]} e5 {[%emt 0:00:08]} 4. Nf3 {[%emt 0:03:20][%cal Bg1f3,Bf3g5,Bg5e6][%mdl 32]} Nbd7 {[%emt 0:00:27]} 5. Bc4 {[%emt 0:02:08]} Be7 {[%emt 0:00:29]} 6. Ng5 {[%emt 0:10:39]} O-O {[%emt 0:03:03]} 7. Bxf7+ {[%emt 0:01:07]} Rxf7 {[%emt 0:00:08]} 8. Ne6 {[%emt 0:00:07]} Qe8 {[%emt 0:00:13]} 9. Nxc7 {[%emt 0:00:05]} Qd8 {[%emt 0:02:41]} 10. Nxa8 {[%emt 0:00:13]} b5 {[%emt 0:05:53]} 11. dxe5 {[%emt 0:06:23]} Nxe5 {[%emt 0:03:03] C41: Philidor Defence.} 12. Nd5 {[%emt 0:09:12]} (12. O-O $11 {keeps the balance.}) 12... Nxd5 $1 $17 {[%emt 0:22:14]} 13. Qxd5 {[%emt 0:00:29]} Bh4 ({Black should play} 13... Bf6 $17 {...Bb7 is the strong threat.} 14. O-O Bb7 15. Qxb5 Bxe4) 14. Be3 {[%emt 0:04:39]} ({Don't blunder} 14. Qxb5 $2 Bxf2+ 15. Kd2 Qg5+ 16. Kc3 Qxg2 $19) 14... Bb7 {[%emt 0:03:47]} 15. Qxb5 {[%cal Oe1c1]} Qxa8 {[%emt 0:03:01]} 16. O-O-O {[%emt 0:02:35][%cal Ba1d1,Bd1d6,Bd6d8][%mdl 32] [#]} Bxe4 $146 {[%emt 0:04:44]} ({Predecessor:} 16... Bxf2 17. Bxf2 Rxf2 18. Rxd6 Ng4 19. Rhd1 Rf8 20. Rd7 Bxe4 21. Qg5 Bg6 22. Qxg4 Qc6 23. R7d2 Rc8 24. c3 h5 25. Qxc8+ Qxc8 26. Rd8+ {1-0 (26) Guimaraes,D (2242)-Carroll,P (2009) Chess.com INT 2020}) 17. Rxd6 {[%emt 0:02:56] [#]} Bxg2 $2 {[%emt 0:04:45] [#] A strong pair of Bishops.} (17... Qc8 $1 $17 {[%csl Ge4][%cal Rc8c2] and life is bright.} 18. c3 Qf5 19. Qe8+ Rf8 20. Qe6+ Qxe6 21. Rxe6 Nd3+ 22. Kd2 Bf5) 18. Rhd1 $1 $16 {[%emt 0:02:52]} Bf6 {[%emt 0:09:26] [#]} 19. Bd4 $1 $36 {[%emt 0:09:34][%mdl 2048] White has strong initiative. White has more active pieces.} Qe4 {[%emt 0:09:08][%mdl 8192]} (19... Rb7 $16 20. Qc5 Bg5+ 21. f4 Bxf4+ 22. Be3 Nf7 23. Bxf4 Nxd6) 20. Bxe5 $18 {[%emt 0:04:29][%cal Od6d8] Black must now prevent Rd8+!} Bxe5 {[%emt 0:02:27]} 21. Rd8+ {[%emt 0:00:40]} Rf8 {[%emt 0:00:13]} 22. Qb3+ {[%emt 0:00:16] Weighted Error Value: White=0.17 (very precise) /Black=0.91} 1-0

[Event "Germany Countries-chT Youth 2022"]
[Site "Wiesbaden"]
[Date "2022.10.02"]
[Round "4"]
[White "Besou, Hussain"]
[Black "Huber, Benedikt"]
[Result "0-1"]
[ECO "E04"]
[WhiteElo "2119"]
[BlackElo "2299"]
[Annotator "TA"]
[PlyCount "134"]
[EventDate "2022.09.28"]
[EventType "team-tourn"]
[EventRounds "7"]
[EventCountry "GER"]
[SourceTitle "playchess.com"]
[Source "ChessBase"]
[SourceQuality "1"]
[TimeControl "40/5400+30:1800+30"]

{[%evp 20,134,17,27,22,17,22,22,16,12,12,0,0,0,-4,-12,-19,-15,0,-39,-36,-36,-25,-44,-38,-61,-56,-42,-46,-47,-38,-52,-38,-31,0,-58,-59,-56,-62,-92,-91,-91,-91,-95,-91,-91,-91,-91,-91,-91,-87,-87,-68,-68,-68,-86,-60,-79,-47,-59,-35,-92,-50,-92,-92,-92,-92,-625,-569,-668,-668,-1090,-1151,-1150,-1146,-1067,-946,-620,-556,-29960,-29962,-29966,-29965,-29965,-29966,-29973,-29972,-29972,-29973,-29972,-29973,-29973,-8,-8,0,-29973,-29969,-29972,0,-29971,-29969,-29970,-29971,-29973,-29974,-29974,-29974,-29974,-29975,-29975,-29976,-29976,-29977,-29976,-29976,-29974,-29970]} 1. d4 {[%emt 0:00:05]} d5 {[%emt 0:00:07]} 2. c4 {[%emt 0:00:08]} e6 {[%emt 0:00:08]} 3. Nf3 {[%emt 0:00:07]} Nf6 {[%emt 0:00:15]} 4. g3 {[%emt 0:00:08]} dxc4 {[%emt 0:00:08]} 5. Bg2 {[%emt 0:00:09]} c5 {[%emt 0:00:10]} 6. O-O {[%emt 0:00:09]} Nc6 {[%emt 0:00:08]} 7. dxc5 {[%emt 0:00:07]} Qxd1 {[%emt 0:00:11]} 8. Rxd1 {[%emt 0:00:06]} Bxc5 {[%emt 0:00:07]} 9. Nbd2 {[%emt 0:00:06]} c3 {[%emt 0:00:08]} 10. bxc3 {[%emt 0:00:05]} O-O {[%emt 0:00:10]} 11. Nb3 {[%emt 0:02:19]} Be7 {[%emt 0:00:12] E04: Open Catalan: 5 Nf3.} 12. Nfd4 {[%emt 0:00:23]} Nxd4 $1 {[%emt 0:00:41][%mdl 4] is now more promising than 12...Bd7.} 13. cxd4 {[%emt 0:01:42]} Nd5 {[%emt 0:00:08] The position is equal.} 14. e4 {[%emt 0:06:31]} Nc3 {[%emt 0:01:39]} 15. Re1 {[%emt 0:04:19]} Bd7 {[%emt 0:14:40]} 16. Bd2 {[%emt 0:04:40]} Rac8 {[%emt 0:00:41] [#]} 17. Re3 $146 {[%emt 0:03:21]} ({Predecessor:} 17. e5 b6 18. Bxc3 Rxc3 19. d5 exd5 20. Bxd5 Rd8 21. Rac1 Rxc1 22. Rxc1 Bg4 23. Be4 {0-1 (40) Navumenka,M (2188)-Tsaruk,M (2324) Grodno 2021}) 17... Nb5 {[%emt 0:05:13]} 18. Rd3 {[%emt 0:14:27]} Rfd8 {[%emt 0:09:00]} 19. Na5 {[%emt 0:07:41]} Be8 {[%emt 0:19:26]} 20. d5 {[%emt 0:07:06] e5 is the strong threat.} b6 {[%emt 0:11:44]} 21. Nb3 {[%emt 0:00:17]} exd5 {[%emt 0:07:19]} 22. exd5 {[%emt 0:00:29]} Bf6 {[%emt 0:00:17]} 23. Rc1 {[%emt 0:08:29]} Rxc1+ {[%emt 0:01:49]} 24. Nxc1 {[%emt 0:00:34]} Nd6 {[%emt 0:03:14]} 25. Be3 {[%emt 0:06:53]} Bb5 {[%emt 0:06:54]} 26. Rd1 {[%emt 0:00:30]} Bc4 {[%emt 0:01:22]} 27. Nb3 {[%emt 0:01:36]} ({Better is} 27. Nd3 $11) 27... Nb5 $1 $15 {[%emt 0:00:54]} 28. Rd2 {[%emt 0:02:02]} Kf8 {[%emt 0:06:24]} 29. Nd4 {[%emt 0:02:15]} Nxd4 {[%emt 0:03:53]} 30. Bxd4 {[%emt 0:00:06]} Bxd4 {[%emt 0:00:05]} 31. Rxd4 {[%emt 0:00:05]} Bxa2 $17 {[%emt 0:00:06][%mdl 4096] Endgame Strongly threatening ...b5. KRB-KRB} 32. Ra4 {[%emt 0:00:04][%csl LRa2,LRa7]} Bb3 {[%emt 0:00:12]} ({Much weaker is} 32... Bxd5 $6 33. Rd4 $11) 33. Rxa7 {[%emt 0:00:07]} Bxd5 {[%emt 0:00:04]} 34. Bxd5 {[%emt 0:00:54]} Rxd5 {[%emt 0:00:05] KR-KR} 35. Rb7 {[%emt 0:00:41]} Rd6 {[%emt 0:01:39]} 36. Kg2 {[%emt 0:00:40]} g6 {[%emt 0:02:47]} 37. Kf3 {[%emt 0:01:01]} Kg7 {[%emt 0:00:30]} 38. h4 {[%emt 0:00:46]} Kf6 {[%emt 0:03:42]} 39. Ke4 {[%emt 0:01:48]} Ke6 {[%emt 0:00:51]} 40. f3 {[%emt 0:00:34]} (40. g4 $15) 40... h6 {[%emt 0:02:24][%cal Bh7h6,Bh6h5][%mdl 32]} 41. Rb8 {[%emt 0:31:38]} f5+ {[%emt 0:19:41]} 42. Kf4 {[%emt 0:00:00]} h5 $1 {[%emt 0:01:42] And now ...Kd5 would win.} 43. Rb7 $2 {[%emt 0:00:00][%mdl 8192] [#]} (43. g4 $17) 43... Kd5 $1 $19 {[%emt 0:01:02]} 44. g4 {[%emt 0:00:00]} fxg4 {[%emt 0:00:22]} 45. fxg4 {[%emt 0:00:00]} hxg4 {[%emt 0:05:34]} 46. Kxg4 {[%emt 0:00:00]} Kc6 {[%emt 0:01:53]} 47. Rb8 {[%emt 0:00:00]} Kc7 {[%emt 0:00:46]} 48. Rf8 {[%emt 0:00:00]} b5 {[%emt 0:00:27][%cal Bb6b5,Bb5b4][%mdl 32] ( -> ...Kb6)} 49. Rf7+ {[%emt 0:00:00]} Kc6 {[%emt 0:00:17]} 50. Rf8 {[%emt 0:00:00]} b4 {[%emt 0:01:13]} 51. Rb8 {[%emt 0:00:00]} Kc5 {[%emt 0:00:13]} 52. Kg5 {[%emt 0:00:01]} Kc4 {[%emt 0:00:20]} 53. Rc8+ {[%emt 0:00:29]} Kd4 {[%emt 0:01:24]} 54. Rb8 {[%emt 0:00:08]} Kc3 {[%emt 0:00:03]} 55. Rc8+ {[%emt 0:00:05]} Kd2 $2 {[%emt 0:01:24]} (55... Kb2 {mates} 56. Rb8 b3 57. Kh6 Ra6 58. Rh8 Ka2 59. Rh7 b2 60. Rb7 b1=Q 61. Rxb1 Kxb1 62. Kg7 Kc2 63. Kf7 Kd3 64. Ke7 Kc4 65. Kf7 Kd5 66. Ke7 Re6+ 67. Kd7 Re4 68. Kc7 Kc5 69. Kd7 Re2 70. Kc7 Re7+ 71. Kd8 Kd6 72. h5 gxh5 73. Kc8 Rh7 74. Kb8 Kc6 75. Ka8 Kb6 76. Kb8 Rh8#) 56. Rb8 $11 {[%emt 0:00:16]} Kc3 $2 {[%emt 0:00:40][%mdl 8192]} (56... Rd4 $11 57. Rb6 Kc3 58. Rxg6 b3 59. Rc6+ Kd2) 57. Rc8+ {[%emt 0:00:05]} Kb3 {[%emt 0:00:53]} 58. Rg8 {[%emt 0:00:16]} Kc4 {[%emt 0:00:22]} 59. Rc8+ {[%emt 0:00:53]} Kd5 {[%emt 0:01:01] Black mates.} 60. Rb8 {[%emt 0:00:08] [#]} Kc5 $1 {[%emt 0:00:29]} 61. Rc8+ {[%emt 0:00:05]} Rc6 {[%emt 0:00:13]} 62. Rb8 {[%emt 0:00:53]} Kc4 {[%emt 0:00:07]} 63. Rf8 {[%emt 0:02:00]} b3 {[%emt 0:00:13]} 64. Rf4+ {[%emt 0:06:54]} Kc3 {[%emt 0:00:18]} 65. Rf3+ {[%emt 0:00:05]} Kb4 {[%emt 0:00:12]} 66. Rf4+ {[%emt 0:00:04]} Ka3 {[%emt 0:00:06]} 67. Rf3 {[%emt 0:00:06]} Ka2 {[%emt 0:00:09] Weighted Error Value: White=0.41/Black=0.28 (precise)} 0-1